{"text_format":"1","workbook":"xlsx","n_sheets":4,"sheets":["Recto","Verso","3","TABLE"],"not_rendered":{"charts":0,"images":0,"macros":1,"external_links":0,"defined_names":18,"comments":0,"pivot_tables":0},"unopened":[],"bounds":{"document_bytes":16777216,"sheet_cells":100000,"rows_first":2000,"rows_last":500,"rows_between":2000,"halvings":0,"cell_chars":16384,"cell_head_chars":4096},"cells_cut":0,"cells_raw":0,"read":"whole","date_system":"1900"}

{"sheet":"Recto","index":0,"n_rows":33,"n_cols":38,"rows_kept":33,"cut":false,"hidden":false,"merged":[[33,1,33,2],[28,1,28,2],[28,23,28,26],[29,1,29,2],[29,23,29,26],[30,1,30,2],[30,23,30,26],[31,0,31,2],[31,3,31,6],[31,22,32,28],[32,0,32,2],[32,3,32,6],[26,1,26,2],[26,23,26,26],[27,1,27,2],[27,23,27,26],[26,22,30,22],[24,1,24,2],[24,23,24,26],[24,22,25,22],[25,1,25,2],[25,23,25,26],[21,1,21,2],[21,23,21,26],[21,22,23,22],[22,1,22,2],[22,23,22,26],[23,1,23,2],[23,23,23,26],[17,1,17,2],[17,23,17,26],[18,1,18,2],[18,23,18,26],[17,22,20,22],[19,1,19,2],[19,23,19,26],[20,1,20,2],[20,23,20,26],[14,1,14,2],[14,23,14,26],[15,1,15,2],[15,23,15,26],[14,22,16,22],[16,1,16,2],[16,23,16,26],[10,1,10,2],[10,23,10,26],[11,1,11,2],[11,23,11,26],[12,1,12,2],[12,23,12,26],[10,22,13,22],[13,1,13,2],[13,23,13,26],[7,1,7,2],[7,23,7,26],[8,1,8,2],[8,23,8,26],[7,22,9,22],[9,1,9,2],[9,23,9,26],[4,0,5,0],[4,1,5,2],[4,3,4,4],[4,5,4,6],[4,22,4,28],[5,22,6,26],[5,27,5,28],[6,1,6,2],[2,6,2,18],[2,19,2,20],[0,19,1,28],[2,21,2,28],[3,0,3,28],[0,0,2,2],[0,3,0,5],[0,6,0,18],[1,3,1,5],[1,6,1,18],[2,3,2,5]]}
[null,null,null,"CONTREMAITRE :",null,null,null,null,null,null,null,null,null,null,null,null,null,null,null,{"$f":"INDEX(TABLE!$A$1:$A$7,WEEKDAY(Recto!V3,2))","v":"Vendredi"}]
[null,null,null,"NOM DU PROJET :"]
[null,null,null,"NO. DU PROJET :",null,null,null,null,null,null,null,null,null,null,null,null,null,null,null,"DATE :",null,"2017-12-15"]
[]
[null,"NOM DE L'EMPLOYÉ",null,"HEURE A.M.",null,"HEURE P.M.",null,"O",1,201,2,211,400,52,100,503,505,508,507,509,null,"TOTAL","Équipements Utilisés"]
[null,null,null,"DE","À","DE","À",null,null,"CR",null,"CO",null,"DD",null,null,null,null,null,null,null,null,"Équipements  ",null,null,null,null,"Compteur "]
[1,null,null,7,12,12.5,15.5,null,null,null,null,null,null,null,null,null,null,null,null,null,null,{"$f":"SUM(H7:U7)","v":0},null,null,null,null,null,"Début","Fin"]
[2,null,null,7,12,12.5,15.5,null,null,null,null,null,null,null,null,null,null,null,null,null,null,0,"CAMIONS"]
[3,null,null,7,12,12.5,15.5,null,null,null,null,null,null,null,null,null,null,null,null,null,null,0]
[4,null,null,7,12,12.5,15.5,null,null,null,null,null,null,null,null,null,null,null,null,null,null,0]
[5,null,null,7,12,12.5,15.5,null,null,null,null,null,null,null,null,null,null,null,null,null,null,0,"BOBCATS"]
[6,null,null,7,12,12.5,15.5,null,null," ",null,null,null,null,null,null,null,null,null,null,null,0]
[7,null,null,7,12,12.5,15.5,null,null,null,null,null,null,null,null,null,null,null,null,null,null,0,null,null,null,null,null,null,null,null,null,null,null,null,null," "]
[8,null,null,7,12,12.5,15.5,null,null,null,null,null,null,null,null,null,null,null,null,null,null,0]
[9,null,null,7,12,12.5,15.5,null,null,null,null,null,null,null,null,null,null,null,null,null,null,0,"PELLES",null,null,null,null,null," "]
[10,null,null,7,12,12.5,15.5,null,null,null,null,null,null,null,null,null,null,null,null,null,null,0]
[11,null,null,null,null,null,null,null,null,null,null,null,null,null,null,null,null,null,null,null,null,0,null,null,null,null,null,null,null,null,null,null," ",null,null,null,null," "]
[12,null,null,null,null,null,null,null,null,null,null,null,null,null,null,null,null,null,null,null,null,0,"TRAMACS"]
[13,null,null,null,null,null,null,null,null,null,null,null,null,null,null,null,null,null,null,null,null,0]
[14,null,null,null,null,null,null,null,null,null,null,null,null,null,null,null,null,null,null,null,null,0]
[15,null,null,null,null,null,null,null,null,null,null,null,null,null,null,null,null,null,null,null,null,0]
[16,null,null,null,null,null,null,null,null,null,null,null,null,null,null,null,null,null,null,null,null,0,"HYDRO"]
[17,null,null,null,null,null,null,null,null,null,null,null,null,null,null,null,null,null,null,null,null,0]
[18,null,null,null,null,null,null,null,null,null,null,null,null,null,null,null,null,null,null,null,null,0]
[19,null,null,null,null,null,null,null,null,null,null,null,null,null,null,null,null,null,null,null,null,0,"LIFT"]
[20,null,null,null,null,null,null,null,null,null,null,null,null,null,null,null,null,null,null,null,null,0]
[21,null,null,null,null,null,null,null,null,null,null,null,null,null,null,null,null,null,null,null,null,0,"ACCESSOIRES"]
[22,null,null,null,null,null,null,null,null,null,null,null,null,null,null,null,null,null,null,null,null,0]
[23,null,null,null,null,null,null,null,null,null,null,null,null,null,null,null,null,null,null,null,null,0]
[24,null,null,null,null,null,null,null,null,null,null,null,null,null,null,null,null,null,null,null,null,0]
[25,null,null,null,null,null,null,null,null,null,null,null,null,null,null,null,null,null,null,null,null,0]
["CHARGÉ DE PROJET",null,null,"CODES",null,null,null,{"$f":"H5","v":"O"},{"$f":"I5","v":1},201,2,211,400,52,100,503,{"$f":"$Q$5","v":505},{"$f":"$R$5","v":508},{"$f":"$S$5","v":507},{"$f":"$T$5","v":509},{"$f":"$U$5","v":0}]
[null,null,null,"ITEM AU BORDEREAU",null,null,null,{"$f":"SUM(H7:H31)","v":0},{"$f":"SUM(I7:I31)","v":0},0,0,0,0,0,0,0,0,0,0,0,0,0]

{"sheet":"Verso","index":1,"n_rows":49,"n_cols":16,"rows_kept":49,"cut":false,"hidden":false,"merged":[[54,0,54,4],[54,5,54,7],[50,0,50,7],[51,0,51,7],[52,0,52,7],[53,0,53,7],[49,0,49,7],[38,0,38,7],[39,0,39,7],[40,0,40,7],[41,0,41,7],[42,0,42,7],[43,0,43,7],[44,0,44,7],[45,0,45,7],[46,0,46,7],[47,0,47,7],[48,0,48,7],[37,0,37,7],[26,0,26,7],[27,0,27,7],[28,0,28,7],[29,0,29,7],[30,0,30,7],[31,0,31,7],[32,0,32,7],[33,0,33,7],[34,0,34,7],[35,0,35,7],[36,0,36,7],[25,0,25,7],[16,0,16,2],[16,5,16,7],[17,0,17,2],[17,5,17,7],[18,0,18,7],[19,0,19,7],[20,0,20,7],[21,0,21,7],[22,0,22,7],[23,0,23,7],[24,0,24,7],[13,0,13,2],[13,5,13,7],[14,0,14,2],[14,5,14,7],[15,0,15,2],[15,5,15,7],[10,0,10,2],[10,5,10,7],[11,0,11,2],[11,5,11,7],[12,0,12,2],[12,5,12,7],[7,0,7,2],[7,5,7,7],[8,0,8,2],[8,5,8,7],[9,0,9,2],[9,5,9,7],[4,0,4,2],[4,5,4,7],[5,0,5,2],[5,5,5,7],[6,0,6,2],[6,5,6,7],[3,0,3,2],[3,5,3,7],[0,0,0,4],[0,5,2,7],[1,0,1,4],[2,0,2,2]]}
[" SOUS-TRAITANTS",null,null,null,null,"   Remarques Accidents CCQ"]
[]
["Nom Des Sous-Traitants",null,null,"No. Employés","Heures"]
[]
[]
[]
[]
[]
[]
[]
[]
[]
[null,null,null,null,null,null,null,null,null,null,null,null," "]
[]
[]
[]
[]
[]
[]
["TRAVAUX EFFECTUÉS :"]
[]
[]
[]
[]
[]
[]
[]
[]
[]
[null,null,null,null,null,null,null,null,null,null,null,null,null," "]
[]
[]
[]
[]
[]
[]
[]
[]
[]
[]
[]
[]
[]
[]
[]
[]
[]
[]
[null,null,null,null,null,null,null,null,null,null,null,null,null,null,null," "]

{"sheet":"3","index":2,"n_rows":182,"n_cols":9,"rows_kept":182,"cut":false,"hidden":false,"merged":[[97,1,98,1]]}
["CODES",null,"Taches","TYPES","TYPES D'INTERVENTION","Anctil, Martin","BALAIS BOBCAT"," "]
[null,"Organisation","Organisation","AP","Appareil D'Appui","Asselin, Daniel","BALAI BOBCAT                             395","Acier E.B."]
[0,"Organisation de chantier","Organisation De Chantier","BAL","Base De Lampadaire","Bélanger , Michel","BALAI BOBCAT                             635","Acier Écan"]
[1,"Mobilisation/démobilisation","Mobilisation/Démobilisation","BPO","Bout De Poutre","Belley, Sylvain","BALAI BOBCAT                             645","Armatech"]
[2,"Mur de protection","Mur De Protection","CA","Canniveau","Blouin, Guillaume","BALAI BOBCAT                             790","Art-Dem"]
[3,"Protection générale","Protection Générale","CH","Chape","Bolduc, Guy","BALAI BOBCAT                             970","Béton Provinciale"]
[4,"Échafaudage","Échafaudage","CO","Colonnes","Brooks, Jason","BALAI BOBCAT                           1025","Blastrac Pierre-Luc Veilleux"]
[5,"Étaiement","Étaiement","CR","Chasses-Roues","D'amours, Daniel","BOBCATS , BROUETTES , LOADERS","Cimota"]
[6,"Accès et entretien","Accès Et Entretien","CU","Culée","Desgagné, Martin","BOBCAT  763                               130","Construction Carrier"]
[7,"Protection temporaire","Protection Temporaire","DA","Dalle","Duchesne , Richard","BOBCAT  753                               145","Diamantex"]
[8,"Chute à déchets","Chute À Déchets","DD","Dessus Dalle","Fillion, Martin","BOBCAT  753                               265","Excavations Desgagné"]
[9,"Encapsulation","Encapsulation","DIA","Diaphragme","Francis, Dominic","BOBCAT  763G                             360","Gicleurs Québécois"]
[10,"Protection pour chauffage","Protection Pour Chauffage","DR","Drain","Gaudreault, Daniel","BOBCAT  763G                             420","Imperméabilisation Eric Lessard"]
[11,"Main d'œuvre","Main D'œuvre","ES","Escalier","Godin , Luc","BOBCAT  S150                             450","Imperméabilisation RAE"]
[20,"Signalisation","Signalisation","GLI","Glissiere De Béton","Grandmont, Serge","TRANSPORTEUR BÉTON              460","JM Lambert"]
[null,null,null,"HYD","Hydro","Laliberté, Martin","TRANSPORTEUR BÉTON              475","La Truelle D'Or"]
[50,"Démolition","Démolition","JC","Joint De Contrôle","Lamonde, Alexandre","BOBCAT  S185                             545","Les Ferrailleurs Du Québec"]
[51,"Démolition - marteau-piqueur","Démolition - Marteau-Piqueur","JD","Joint De Dilatation","Lemieux , Pierre","BOBCAT  S150                             620","Mécanique Ducro"]
[52,"Démolition - tramac","Démolition - Tramac","JETU","Jersey Tunnel","Lessard , Steve","BOBCAT  S150                             690","Monsieur Watt"]
[53,"Démolition de pelle","Démolition De Pelle","MBL","Murs De Blocs","Martineau, Yannick","BOBCAT  S150                             695","Multi-Métal"]
[54,"Démolition à cisaille","Démolition À Cisaille","ME","Membrane","Molloy, Steve","CHARGEUR CAT                          745","Nasco"]
[55,"Démolition générale (propre)","Démolition Générale (Propre)","MEC","Démolition De Mécanique","Paquet , Richard","CHARGEUR CAT                          835","Plomberie Pichette"]
[56,"Hydrodémolition- spinjet","Hydrodémolition- Spinjet","MGY","Démolition Murs De Gypse","Prieur , Richard","BOBCAT CAT 226B                      855","Pompage Optimum"]
[57,"Hydrodémolition- robot","Hydrodémolition- Robot","MTE","Démolition Murs Terracota","Racine , Guy","BOBCAT S160                              920","Revenco"]
[58,"Hydrodémolition-Lance","Hydrodémolition-Lance","MU","Murs","Samson, Guy","BOBCAT S160                              925","Sani-Orléans"]
[59,"Démolition de mécanique","Démolition De Mécanique","PA","Passerelle","Tremblay, Marlene","BOBCAT S160                              945","Sciage Forage"]
[60,"Démolition-scarification","Démolition-Scarification","PE","Pleine Épaisseur","Turcotte, Hughes","BOBCAT S160                              950","Viking"]
[61,"Nettoyage","Nettoyage","PFGY","Plafond Gypse Enlevement",null,"BOBCAT S160                            1010"]
[62,"Enlèvement d'enduit","Enlèvement D'enduit","PFTU","Plafond Tuile Enlevement",null,"BOBCAT S160                            1015"]
[63,"Bassin de filtration et sédimentation","Bassin De Filtration Et Sédimentation","PI","Pile",null,"BOBCAT S160                            1020"]
[64,"Enlèvement d'isolation sur mécanique","Enlèvement D'isolation Sur Mécanique","PL","Dessous Dalle",null,"BROUETTE YANMAR                  1030"]
[65,"Lavage à pression (hydrodémolition)","Lavage À Pression (Hydrodémolition)","PLCE","Plancher Céramique Enlevement",null,"BROUETTE YANMAR                  1035"]
[66,"Nettoyage de rebuts de démolition","Nettoyage De Rebuts De Démolition","PLTU","Plancher Tuile Enlevement",null,"BOBCAT 553                              1040"]
[67,"Démentèlement pour récupération","Démentèlement Pour Récupération","PO","Poutres",null,"BOBCAT S550                            1095"]
[null,null,null,"SS","Super Structure",null,"TRANSPORTEUR BÉTON            1105"]
[100,"Lavage/Nettoyage","Lavage / Nettoyage","TR","Transition",null,"PELLE BOBCAT  322                           495"]
[101,"Nettoyage de chantier","Nettoyage De Chantier","TRO","Trottoir",null,"PELLE KUBOTA   KX-41-3                   580"]
[102,"Nettoyage armature","Nettoyage Armature",null,null,null,"PELLE CATER 304  CCR                     615"]
[103,"Nettoyage à l'eau et à l'air","Nettoyage À L'eau Et À L'air",null,null,null,"PELLE JOHN DEERE  330 CLC            715"]
[104,"Lavage à pression","Lavage À Pression",null,null,null,"PELLE KOMATSU  PC 27                     750"]
[105,"Hydrodémolition-lavage","Hydrodémolition-Lavage",null,null,null,"PELLE KUBOTA   KX-41-3                   755"]
[106,"nettoyage au balai mécanique","Nettoyage Au Balai Mécanique",null,null,null,"PELLE KOMATSU PC 35                      865"]
[107,"nettoyage de coffrage","Nettoyage De Coffrage",null,null,null,"PELLE CATER 304  CCR                     900"]
[null,null,null,null,null,null,"PELLE KUBOTA KX-18                       1110"]
[150,"Armature","Armature",null,null,null,"COMPRESSEURS"]
[151,"Forer/poser ancrages pour armature","Forer/Poser Ancrages Pour Armature",null,null,null,"COMPRESSEUR SULLAIR                           245"]
[152,"Forer/poser ancrages à béton projeté","Forer/Poser Ancrages À Béton Projeté",null,null,null,"COMPRESSEUR SULLAIR 200 HP              345"]
[153,"Poser armature","Poser Armature",null,null,null,"COMPRESSEUR SULLAIR 375 CFM            530"]
[154,"Poser treillis métalique","Poser Treillis Métalique",null,null,null,"COMPRESSEUR SULLAIR 100HP                560"]
[155,"Couper armature existante","Couper Armature Existante",null,null,null,"COMPRESSEUR SULLAIR LS-60                 600"]
[156,"Poser manchons","Poser Manchons",null,null,null,"COMPRESSEUR SULLAIR 185 CFM            685"]
[null,null,null,null,null,null,"COMPRESSEUR SULLAIR  375 CFM           825"]
[200,"Béton","Béton",null,null,null,"COMPRESSEUR SULLAIR  375 CFM           830"]
[201,"Coffrage/décoffrage","Coffrage/Décoffrage",null,null,null,"COMPRESSEUR SULLAIR  375 CFM           960"]
[202,"Liant à béton - inhibiteur de corrosion","Liant À Béton - Inhibiteur De Corrosion",null,null,null,"COMPRESSEUR SULLAIR  185 CFM          1050"]
[203,"Poser scellant à béton","Poser Scellant À Béton",null,null,null,"COMPRESSEUR SULLAIR  375 CFM          1075"]
[204,"Béton projeté - mûrissement","Béton Projeté - Mûrissement",null,null,null,"LIFTS"]
[205,"Injection","Injection",null,null,null,"LIFT TOYOTA FG25                         135"]
[206,"Resurfaçage au mortier","Resurfaçage Au Mortier",null,null,null,"LIFT TOYOTA                                   275"]
[207,"Resurfaçage à l'époxy - membrane","Resurfaçage À L'époxy - Membrane",null,null,null,"CHARIOT HYSTER  H50XM              340"]
[208,"Traitement de fissure","Traitement De Fissure",null,null,null,"CHARIOT HYSTER H110XL              490"]
[209,"Bétonnage","Bétonnage",null,null,null,"PEGASUS                                         795"]
[210,"Mûrissement","Mûrissement",null,null,null,"NACELLE GÉNIE S45                        890"]
[211,"Bétonnage en sac","Bétonnage En Sac",null,null,null,"NACELLE SNORKEL TBA 60              895"]
[212,"Plastrage","Plastrage",null,null,null,"CHARIOT ÉLÉVATEUR MERLOT        980"]
[213,"Béton remblai","Béton Remblai",null,null,null,"NACELLE GÉNIE S60                         985"]
[214,"Béton rmaigre","Béton Rmaigre",null,null,null,"TRAMACS"]
[null,null,null,null,null,null,"MARTEAU KUBOTA KXB 400N                 480"]
[250,"Membrane","Membrane",null,null,null,"MARTEAU KUBOTA KXB 400N                 540"]
[251,"Préparation des surfaces","Préparation Des Surfaces",null,null,null,"MARTEAU KUBOTA KXB 400N                 555"]
[252,"Blastrac","Blastrac",null,null,null,"MARTEAU KUBOTA KXB 400N                 595"]
[253,"Application (pose)","Application (Pose)",null,null,null,"MARTEAU KUBOTA KXB 400N                 610"]
[null,null,null,null,null,null,"MARTEAU D&A 360-v                             720"]
[300,"Divers","Divers",null,null,null,"MARTEAU KUBOTA                                 730"]
[301,"Enlèvement de pavage","Enlèvement De Pavage",null,null,null,"MARTEAU KUBOTA                                 735"]
[302,"Pose de pavage","Pose De Pavage",null,null,null,"MARTEAU KUBOTA                                 740"]
[303,"Déficiences","Déficiences",null,null,null,"SCARIFICATEUR  BOBCAT                     760"]
[304,"Poser joint d'expansion","Poser Joint D'expansion",null," ",null,"MARTEAU CATERPILLAR  H55DS           780"]
[305,"Déblai/remblai","Déblai/Remblai",null,null,null,"MARTEAU CATERPILLAR  H45DS           785"]
[306,"Entretien mécanique","Entretien Mécanique",null,null,null,"MARTEAU CATERPILLAR  H45DS           800"]
[307,"Soudure","Soudure",null,null,null,"CISAILLE À BÉTON DARDA  560            860"]
[308,"Jet de sable","Jet De Sable",null,null,null,"MARTEAU CATERPILLAR  H55DS           930"]
[309,"Métaux ouvrés","Métaux Ouvrés",null,null,null,"MARTEAU BOBCAT HB680                    ????"]
[310,"Déneigement","Déneigement",null,null,null,"MARTEAU BOBCAT HB680                    ????"]
[311,"Protection et chauffage","Protection Et Chauffage",null,null,null,"MARTEAU ATLAS COPCO                     1060"]
[312,"Chauffage de pavage","Chauffage De Pavage",null,null,null,"MARTEAU ATLAS COPCO                     1065"]
[313,"Meulage","Meulage",null,null,null,"MARTEAU INDECO H500                       1115"]
[314,"Forer ancrages au rock","Forer Ancrages Au Rock",null,null,null,"HYDRO"]
[315,"poser filet métallique","Poser Filet Métallique",null,null,null,"ROBOT  NLB 4400                             100"]
[316,"Poser appareil d'appui","Poser Appareil D'appui",null,null,null,"ROBOT  NLB 4400                             110"]
[317,"Déplacer barge","Déplacer Barge",null,null,null,"POMPE NLB                                       205"]
[319,"Poser miradrain","Poser Miradrain",null,null,null,"POMPE NLB 202500                          215"]
[320,"Chauffage béton","Chauffage Béton",null,null,null,"POMPE NLB 202500                          220"]
[321,"Lever tablier","Lever Tablier",null,null,null,"SPIN 20K GRATTE CLEANER             235"]
[400,"Travaux supplémentaires","Travaux Supplémentaires",null,null,null,"ROBOT NLB (4400)                           325"]
[null,null,null,null,null,null,"POMPE NLB                                       330"]
[600,null,"Amiante",null,null,null,"ROBOT NLB 4400                              510"]
["6_ _ _","Pour travaux amiante, ajouté le 6 devant le code","Pour Travaux Amiante, Ajouté Le 6 Devant Le Code",null,null,null,"POMPE NLB 20600                            515"]
[null,null,null,null,null,null,"ROBOT AQUAJET 710V                     880",null," "]
[null,null,null,null,null,null,"SPINJET HONDA                                ???"]
[500,"Architecture/Finition","Architecture / Finition",null,null,null,"SPINJET HONDA                                ???"]
[501,"Démolition de cloison sèche (gypse)","Démolition De Cloison Sèche (Gypse)",null,null,null,"ROBOT AQUAJET 710V                    1080",null," "]
[502,"Démolition de mur de bloc","Démolition De Mur De Bloc",null,null,null,"CAMIONS"]
[503,"Pose de cloison en stud bois ou métal","Pose De Cloison En Stud Bois Ou Métal",null,null,null,"FORD CUBE CUTWAY                        150"]
[504,"Pose d'isolant ","Pose D'isolant",null,null,null,"GMC SAFARI                                      170"]
[505,"Pose de revêtement de finition","Pose De Revêtement De Finition",null,null,null,"DODGE DAKOTA                                335"]
[506,"Pose de solins","Pose De Solins",null,null,null,"CHEVROLET ASTRO CARGO              350"]
[507,"Portes, cadres et quincaillerie","Portes, Cadres Et Quincaillerie",null,null,null,"DODGE DAKOTA                                355"]
[508,null,"Peinture",null,null,null,"DODGE DAKOTA                                390"]
[509,null,"Joints De Scellant",null,null,null,"FORD  F-250                                      400"]
[null,null,null,null,null,null,"CHEVROLET ASTRO                           405"]
[null,null,null,null,null,null,"FORD  F-150                                      410"]
[null,null,null,null,null,null,"DODGE DAKOTA                                430"]
[null,null,null,null,null,null,"FORD  F-250                                      435"]
[null,null,null,null,null,null,"FORD  F-550                                      440"]
[null,null,null,null,null,null,"FORD  F-150                                      445"]
[null,null,null,null,null,null,"CHEVROLET SILVERADO                    465"]
[null,null,null,null,null,null,"DODGE DAKOTA                                 470"]
[null,null,null,null,null,null,"MITSUBISHI  FE140                            500"]
[null,null,null,null,null,null,"CHEVROLET 1500                               565"]
[null,null,null,null,null,null,"CHEVROLET COLORADO                    575"]
[null,null,null,null,null,null,"CHEVROLET COLORADO                    585"]
[null,null,null,null,null,null,"FORD  RANGER                                  590"]
[null,null,null,null,null,null,"GMC SAFARI                                       625"]
[null,null,null,null,null,null,"FORD F-150 4X4                                 640"]
[null,null,null,null,null,null,"DODGE DAKOTA                                 670"]
[null,null,null,null,null,null,"DODGE DAKOTA                                 675"]
[null,null,null,null,null,null,"DODGE DAKOTA                                 680"]
[null,null,null,null,null,null,"CHEVROLET SILVERADO                    710"]
[null,null,null,null,null,null,"FORD  F-150 XL                                  770"]
[null,null,null,null,null,null,"FORD  F-150 XL                                  775"]
[null,null,null,null,null,null,"FORD F-150                                        805"]
[null,null,null,null,null,null,"CHEVROLET S-10                                815"]
[null,null,null,null,null,null,"DODGE DAKOTA                                 840"]
[null,null,null,null,null,null,"GMC SIERRA                                       850"]
[null,null,null,null,null,null,"CHEVROLET SILVERADO                    885"]
[null,null,null,null,null,null,"CHEVROLET SILVERADO                    910"]
[null,null,null,null,null,null,"CHEVROLET SILVERADO                    915"]
[null,null,null,null,null,null,"CHEVROLET SILVERADO                    935"]
[null,null,null,null,null,null,"CHEVROLET SILVERADO                    940"]
[null,null,null,null,null,null,"CHEVROLET SILVERADO                    975"]
[null,null,null,null,null,null,"GMC SIERRA                                       990"]
[null,null,null,null,null,null,"FORD F-550                                       1000"]
[null,null,null,null,null,null,"MITSHUBISHI FUSO                           1005"]
[null,null,null,null,null,null,"GMC SIERRA                                      1045"]
[null,null,null,null,null,null,"CHEVROLET SILVERADO                   1085"]
[null,null,null,null,null,null,"MITSHUBISHI FUSO                           1090"]
[null,null,null,null,null,null,"REMORQUES"]
[null,null,null,null,null,null,"REMORQUE POUR ROBOT                105"]
[null,null,null,null,null,null,"REMORQUE POUR ROBOT                115"]
[null,null,null,null,null,null,"REMORQUE FRUEHAUF                    120"]
[null,null,null,null,null,null,"REMORQUE FRUEHAUF                    125"]
[null,null,null,null,null,null,"REMORQUE MANAC V90                   280"]
[null,null,null,null,null,null,"REMORQUE MANAC V90                   285"]
[null,null,null,null,null,null,"REMORQUE TOWMA T10P                290"]
[null,null,null,null,null,null,"REMORQUE                                       375"]
[null,null,null,null,null,null,"REMORQUE ROUGE                          425"]
[null,null,null,null,null,null,"REMORQUE MANAC                          520"]
[null,null,null,null,null,null,"REMORQUE MANAC                          525"]
[null,null,null,null,null,null,"REMORQUE 54'   N & N                      650"]
[null,null,null,null,null,null,"REMORQUE FORES  TW612              700"]
[null,null,null,null,null,null,"REMORQUE R&B  KING                     725"]
[null,null,null,null,null,null,"REMORQUE FERMÉE MIDDLEBURY   765"]
[null,null,null,null,null,null,"ROULOTTE  ATCO  8 x 16                  810"]
[null,null,null,null,null,null,"REMORQUE CAM                               845"]
[null,null,null,null,null,null,"ACCESSOIRES"]
[null,null,null,null,null,null,"BLASTRACK GP1220DC                225"]
[null,null,null,null,null,null,"MACHINE GUNITE ALIVA 246       320"]
[null,null,null,null,null,null,"POMPE LITTLE GYP ''C''                 415"]
[null,null,null,null,null,null,"POMPE HONDA  V-TWIN               485"]
[null,null,null,null,null,null,"LAVEUSE PRESSION 5000LBS       550"]
[null,null,null,null,null,null,"POMPE BUNKER B100                   605"]
[null,null,null,null,null,null,"POMPE À BÉTON BUNKER             655"]
[null,null,null,null,null,null,"UNITÉ HYDRAULIQUE BUNKER     660"]
[null,null,null,null,null,null,"POMPE IMER SMALL 50                665"]
[null,null,null,null,null,null,"POMPE GRACO                             705"]
[null,null,null,null,null,null,"TOUR ÉCLAIRAGE  MLT40             870"]
[null,null,null,null,null,null,"TOUR ÉCLAIRAGE  MLT30             875"]
[null,null,null,null,null,null,"POMPE À BÉTON BUNKER             955"]
[null,null,null,null,null,null,"P.A.M                                          1055"]
[null,null,null,null,null,null,"P.A.M                                          1055"]
[null,null,null,null,null,null,"P.A.M                                          1100"]

{"sheet":"TABLE","index":3,"n_rows":7,"n_cols":1,"rows_kept":7,"cut":false,"hidden":false,"merged":[]}
["Lundi"]
["Mardi"]
["Mercredi"]
["Jeudi"]
["Vendredi"]
["Samedi"]
["Dimanche"]